[Event "XVI Memorial Lezcano Montalvo 2024"]
[Site "Gran Canaria"]
[Date "2024.03.31"]
[Round "9.39"]
[White "Grube, Kurt"]
[Black "Ascension Suarez, Joel"]
[Result "1-0"]
[ECO "E14"]
[WhiteElo "1773"]
[BlackElo "1731"]
[Annotator "NA RC COMBH"]
[PlyCount "112"]
[EventDate "2024.03.23"]
[EventType "swiss"]
[EventCountry "ESP"]
[SourceTitle "playchess.com"]
[Source "ChessBase"]
[SourceQuality "1"]
[TimeControl "5400+30"]

1. c4 {[%emt 0:00:03]} b6 {[%emt 0:00:24]} 2. Nf3 {[%emt 0:00:44]} Bb7 {[%emt 0:00:05]} 3. d4 {[%emt 0:00:54]} e6 {[%emt 0:00:08]} 4. e3 {[%emt 0:00:32]} Nf6 {[%emt 0:01:07]} 5. Nc3 {[%emt 0:00:38]} d5 {[%emt 0:00:43]} 6. Bd2 {[%emt 0:02:10]} Nbd7 {[%emt 0:00:19]} 7. cxd5 {[%emt 0:01:38]} Nxd5 {[%emt 0:00:38]} 8. Be2 {[%emt 0:02:22]} Be7 {[%emt 0:00:11]} 9. O-O {[%emt 0:00:46]} O-O {[%emt 0:00:05]} 10. Rc1 {[%emt 0:03:04]} c5 {[%emt 0:00:35]} 11. a3 {[%emt 0:04:27]} N7f6 {[%emt 0:00:48]} 12. Nxd5 {[%emt 0:05:31]} Bxd5 {[%emt 0:00:38]} 13. Ne5 {[%emt 0:03:36]} cxd4 {[%emt 0:01:16]} 14. exd4 {[%emt 0:00:20]} Bb7 {[%emt 0:01:27]} 15. Bf3 {[%emt 0:08:03]} Bxf3 {[%emt 0:01:06]} 16. Nxf3 {[%emt 0:03:26]} Ne4 {[%emt 0:00:32]} 17. Be3 {[%emt 0:01:37]} Nd6 {[%emt 0:02:34]} 18. Ne5 {[%emt 0:01:38]} Nf5 {[%emt 0:01:16]} 19. Nc6 {[%emt 0:00:32]} Nxe3 {[%emt 0:00:47]} 20. fxe3 {[%emt 0:00:13]} Qd7 {[%emt 0:00:27]} 21. Nxe7+ {[%emt 0:03:30]} Qxe7 {[%emt 0:00:07]} 22. Qf3 {[%emt 0:00:47]} Rac8 {[%emt 0:00:41]} 23. Qf4 {[%emt 0:02:21]} f6 {[%emt 0:05:06]} 24. Qg4 {[%emt 0:04:32]} f5 {[%emt 0:00:52]} 25. Qf4 {[%emt 0:00:19]} g5 {[%emt 0:01:00]} 26. Qe5 {[%emt 0:00:07]} Rxc1 {[%emt 0:02:19]} 27. Rxc1 {[%emt 0:00:02]} Qf6 {[%emt 0:00:41]} 28. Qc7 {[%emt 0:04:22]} Rf7 {[%emt 0:06:41]} 29. Qd6 {[%emt 0:05:15]} Qe7 {[%emt 0:05:08]} 30. Rc8+ {[%emt 0:03:04]} Kg7 {[%emt 0:00:08]} 31. Qe5+ {[%emt 0:00:39]} Qf6 {[%emt 0:00:14]} 32. Qd6 {[%emt 0:05:36]} f4 {[%emt 0:15:29]} 33. exf4 {[%emt 0:01:04]} Qxf4 {[%emt 0:00:30]} 34. Qxf4 {[%emt 0:02:00]} Rxf4 {[%emt 0:02:41]} 35. Rc7+ {[%emt 0:00:48]} Kg6 {[%emt 0:00:28]} 36. Rc6 {[%emt 0:02:31]} Kf5 {[%emt 0:00:59]} 37. Rd6 {[%emt 0:00:53]} h5 {[%emt 0:01:11]} 38. g3 {[%emt 0:00:35]} Rf3 {[%emt 0:02:31]} 39. Rd7 {[%emt 0:01:17]} Rd3 {[%emt 0:08:08]} 40. Rxa7 {[%emt 0:03:31]} Rxd4 {[%emt 0:00:08]} 41. Rf7+ {[%emt 0:00:12]} Ke5 {[%emt 0:02:05]} 42. Rf2 {[%emt 0:02:29]} Kd5 {[%emt 0:01:13]} 43. Rc2 {[%emt 0:00:36]} e5 {[%emt 0:00:18]} 44. Kf2 {[%emt 0:00:21]} e4 {[%emt 0:00:38]} 45. Ke2 {[%emt 0:00:59]} Rd3 {[%emt 0:02:10]} 46. Kf2 {[%emt 0:08:30]} Kd4 {[%emt 0:02:23]} 47. Ke2 {[%emt 0:06:31]} h4 {[%emt 0:00:46]} 48. Rc3 {[%emt 0:01:24]} Rxc3 {[%emt 0:00:10]} 49. bxc3+ {[%emt 0:00:01]} Kxc3 {[%emt 0:00:07]} 50. Ke3 {[%emt 0:00:35]} Kb3 {[%emt 0:00:06]} 51. Kxe4 {[%emt 0:00:05]} Kxa3 {[%emt 0:00:10]} 52. gxh4 {[%emt 0:01:19]} gxh4 {[%emt 0:00:09]} 53. Kd3 {[%emt 0:01:59]} Kb3 {[%emt 0:00:12]} 54. h3 {[%emt 0:00:10]} b5 {[%emt 0:00:07]} 55. Kd2 {[%emt 0:00:55]} b4 {[%emt 0:00:11]} 56. Kd3 {[%emt 0:00:20]} Ka2 {[%emt 0:00:08]} 1-0

[Event "XVI Memorial Lezcano Montalvo 2024"]
[Site "Gran Canaria"]
[Date "2024.03.31"]
[Round "9.40"]
[White "Delgado Armas, Francisco David"]
[Black "Yuan, Yingjie"]
[Result "0-1"]
[ECO "E71"]
[WhiteElo "1726"]
[BlackElo "1771"]
[Annotator "NA RC COMBH"]
[PlyCount "66"]
[EventDate "2024.03.23"]
[EventType "swiss"]
[EventCountry "ESP"]
[SourceTitle "playchess.com"]
[Source "ChessBase"]
[SourceQuality "1"]
[TimeControl "5400+30"]

1. Nf3 {[%emt 0:00:03]} g6 {[%emt 0:00:39]} 2. d4 {[%emt 0:00:34]} Bg7 {[%emt 0:00:21]} 3. c4 {[%emt 0:00:35]} c5 {[%emt 0:01:40]} 4. d5 {[%emt 0:01:10]} d6 {[%emt 0:01:51]} 5. e4 {[%emt 0:00:56]} Nf6 {[%emt 1:28:29]} 6. Nc3 {[%emt 0:02:17]} O-O {[%emt 0:00:00]} 7. h3 {[%emt 0:03:30]} e6 {[%emt 0:00:00]} 8. Bg5 {[%emt 0:03:59]} Qb6 {[%emt 0:00:00]} 9. Qd2 {[%emt 0:02:33]} exd5 {[%emt 0:00:00]} 10. Bxf6 {[%emt 0:07:48]} Bxf6 {[%emt 0:00:00]} 11. Nxd5 {[%emt 0:00:30]} Qd8 {[%emt 0:00:00]} 12. Nxf6+ {[%emt 0:01:49]} Qxf6 {[%emt 0:00:00]} 13. h4 {[%emt 0:03:14]} h5 {[%emt 0:00:00]} 14. O-O-O {[%emt 0:04:14]} Rd8 {[%emt 0:00:00]} 15. Ng5 {[%emt 0:11:55]} Nc6 {[%emt 0:00:00]} 16. f3 {[%emt 0:04:13]} Nd4 {[%emt 0:00:00]} 17. Be2 {[%emt 0:01:14]} a5 {[%emt 0:00:00]} 18. g4 {[%emt 0:02:25]} Qf4 {[%emt 0:00:00]} 19. Kb1 {[%emt 0:03:03]} Qxd2 {[%emt 0:00:00]} 20. Rxd2 {[%emt 0:00:13]} f6 {[%emt 0:00:00]} 21. Nh3 {[%emt 0:00:31]} hxg4 {[%emt 0:00:00]} 22. fxg4 {[%emt 0:04:35]} Nxe2 {[%emt 0:00:00]} 23. Rxe2 {[%emt 0:40:39]} Bxg4 {[%emt 0:09:00]} 24. Rg2 {[%emt 0:00:00]} Bf3 {[%emt 0:00:00]} 25. Rxg6+ {[%emt 0:00:00]} Kf7 {[%emt 0:00:00]} 26. Rhg1 {[%emt 0:00:00]} Bxe4+ {[%emt 0:00:00]} 27. Kc1 {[%emt 0:00:00]} Bxg6 {[%emt 0:00:00]} 28. Nf4 {[%emt 0:00:00]} Be4 {[%emt 0:00:00]} 29. h5 {[%emt 0:00:00]} Rg8 {[%emt 0:00:00]} 30. Re1 {[%emt 0:00:00]} Rae8 {[%emt 0:00:00]} 31. Rf1 {[%emt 0:00:00]} Rg4 {[%emt 0:00:00]} 32. Ne2 {[%emt 0:00:00]} Bd3 {[%emt 0:00:00]} 33. Rf4 {[%emt 0:00:00]} Bxe2 {[%emt 0:00:00]} 0-1

[Event "XVI Memorial Lezcano Montalvo 2024"]
[Site "Gran Canaria"]
[Date "2024.03.31"]
[Round "9.41"]
[White "Perez Betancor, Jose Luis"]
[Black "Leandro Tejera, Damian"]
[Result "1-0"]
[ECO "B21"]
[WhiteElo "1765"]
[BlackElo "1483"]
[Annotator "NA RC COMBH"]
[PlyCount "87"]
[EventDate "2024.03.23"]
[EventType "swiss"]
[EventCountry "ESP"]
[SourceTitle "playchess.com"]
[Source "ChessBase"]
[SourceQuality "1"]
[TimeControl "5400+30"]

1. e4 {[%emt 0:00:30]} c5 {[%emt 0:06:16]} 2. d4 {[%emt 0:00:00]} cxd4 {[%emt 0:00:08]} 3. c3 {[%emt 0:00:00]} dxc3 {[%emt 0:00:17]} 4. Nxc3 {[%emt 0:00:07]} g6 {[%emt 0:00:13]} 5. Bc4 {[%emt 0:00:22]} Bg7 {[%emt 0:00:14]} 6. Qb3 {[%emt 0:00:20]} e6 {[%emt 0:00:38]} 7. Nb5 {[%emt 0:00:27]} Qb6 {[%emt 0:00:52]} 8. Bf4 {[%emt 0:02:58]} Qa5+ {[%emt 0:01:18]} 9. Kf1 {[%emt 0:03:42]} Na6 {[%emt 0:02:16]} 10. Nd6+ {[%emt 0:00:34]} Ke7 {[%emt 1:23:18]} 11. Nf3 {[%emt 0:02:27]} Nf6 {[%emt 0:00:00]} 12. e5 {[%emt 0:03:31]} Ne8 {[%emt 0:00:00]} 13. Rd1 {[%emt 0:01:24]} Nxd6 {[%emt 0:00:00]} 14. exd6+ {[%emt 1:21:08]} Kf8 {[%emt 0:00:00]} 15. Bg5 {[%emt 0:00:00]} Nc5 {[%emt 0:00:00]} 16. Qc2 {[%emt 0:00:00]} b6 {[%emt 0:00:00]} 17. Be7+ {[%emt 0:00:00]} Kg8 {[%emt 0:00:00]} 18. Nd4 {[%emt 0:00:00]} Bb7 {[%emt 0:00:00]} 19. Nb5 {[%emt 0:00:00]} h6 {[%emt 0:00:00]} 20. Nc7 {[%emt 0:00:00]} Rc8 {[%emt 0:00:00]} 21. f3 {[%emt 0:00:00]} Na6 {[%emt 0:00:00]} 22. Bxa6 {[%emt 0:00:00]} Bxa6+ {[%emt 0:00:00]} 23. Kf2 {[%emt 0:00:00]} Kh7 {[%emt 0:00:00]} 24. Rhe1 {[%emt 0:00:00]} f5 {[%emt 0:00:00]} 25. Kg1 {[%emt 0:00:00]} Bb7 {[%emt 0:00:00]} 26. Kh1 {[%emt 0:00:00]} g5 {[%emt 0:00:00]} 27. Qf2 {[%emt 0:00:00]} Qxa2 {[%emt 0:00:00]} 28. Rd2 {[%emt 0:00:00]} Qa4 {[%emt 0:00:00]} 29. Qe2 {[%emt 0:00:00]} e5 {[%emt 0:00:00]} 30. Qd3 {[%emt 0:00:00]} Kg6 {[%emt 0:00:00]} 31. b3 {[%emt 0:00:00]} Qd4 {[%emt 0:00:00]} 32. Qe2 {[%emt 0:00:00]} Qf4 {[%emt 0:00:00]} 33. Rdd1 {[%emt 0:00:00]} Bf6 {[%emt 0:00:00]} 34. Bxf6 {[%emt 0:00:00]} Kxf6 {[%emt 0:00:00]} 35. b4 {[%emt 0:00:00]} h5 {[%emt 0:00:00]} 36. Rc1 {[%emt 0:00:00]} g4 {[%emt 0:00:00]} 37. Rc3 {[%emt 0:00:00]} Rcg8 {[%emt 0:00:00]} 38. Re3 {[%emt 0:00:00]} Qxb4 {[%emt 0:00:00]} 39. Rxe5 {[%emt 0:00:00]} Qxd6 {[%emt 0:00:00]} 40. Nb5 {[%emt 0:00:00]} Qb8 {[%emt 0:00:00]} 41. Qc2 {[%emt 0:00:00]} Rg5 {[%emt 0:00:00]} 42. Re7 {[%emt 0:00:00]} gxf3 {[%emt 0:00:00]} 43. Qc3+ {[%emt 0:00:00]} Kg6 {[%emt 0:00:00]} 44. Qg7# {[%emt 0:15:00]} 1-0

[Event "XVI Memorial Lezcano Montalvo 2024"]
[Site "Gran Canaria"]
[Date "2024.03.31"]
[Round "9.42"]
[White "Vargas Tinoco, Martin Alonso"]
[Black "Santos Falcon, Jose"]
[Result "1-0"]
[ECO "D02"]
[WhiteElo "1681"]
[BlackElo "1749"]
[Annotator "NA RC COMBH"]
[PlyCount "91"]
[EventDate "2024.03.23"]
[EventType "swiss"]
[EventCountry "ESP"]
[SourceTitle "playchess.com"]
[Source "ChessBase"]
[SourceQuality "1"]
[TimeControl "5400+30"]

1. d4 {[%emt 0:00:30]} d5 {[%emt 0:00:30]} 2. Bf4 {[%emt 0:00:30]} e6 {[%emt 0:00:30]} 3. e3 {[%emt 0:00:30]} c5 {[%emt 0:00:30]} 4. Nf3 {[%emt 0:00:46]} cxd4 {[%emt 0:00:26]} 5. exd4 {[%emt 0:00:08]} Nc6 {[%emt 0:03:10]} 6. c3 {[%emt 0:01:26]} Bd6 {[%emt 0:00:18]} 7. Bxd6 {[%emt 0:00:19]} Qxd6 {[%emt 0:00:07]} 8. Nbd2 {[%emt 0:00:51]} Nge7 {[%emt 0:00:49]} 9. Bb5 {[%emt 0:01:11]} a6 {[%emt 0:00:31]} 10. Ba4 {[%emt 0:00:26]} b5 {[%emt 0:00:29]} 11. Bc2 {[%emt 0:00:10]} Bd7 {[%emt 0:00:53]} 12. O-O {[%emt 0:01:32]} b4 {[%emt 0:00:30]} 13. c4 {[%emt 0:02:02]} dxc4 {[%emt 0:00:33]} 14. Nxc4 {[%emt 0:00:07]} Qc7 {[%emt 0:00:24]} 15. Re1 {[%emt 0:05:07]} Nd5 {[%emt 0:01:57]} 16. Rc1 {[%emt 0:02:06]} g6 {[%emt 0:05:36]} 17. Be4 {[%emt 0:05:26]} O-O {[%emt 0:03:18]} 18. Nce5 {[%emt 0:06:54]} Qb7 {[%emt 0:06:32]} 19. Qd2 {[%emt 0:07:28]} Nxe5 {[%emt 0:05:02]} 20. dxe5 {[%emt 0:01:22]} Kg7 {[%emt 0:08:15]} 21. Rc5 {[%emt 0:02:25]} Qb6 {[%emt 0:16:16]} 22. Rec1 {[%emt 0:02:07]} Rac8 {[%emt 0:08:19]} 23. Rxc8 {[%emt 0:01:09]} Rxc8 {[%emt 0:00:02]} 24. Rxc8 {[%emt 0:00:14]} Bxc8 {[%emt 0:37:33]} 25. Bxd5 {[%emt 0:58:14]} exd5 {[%emt 0:00:00]} 26. Qxd5 {[%emt 0:00:00]} Bb7 {[%emt 0:00:00]} 27. Qd4 {[%emt 0:00:00]} Qxd4 {[%emt 0:01:30]} 28. Nxd4 {[%emt 0:01:30]} Bd5 {[%emt 0:00:00]} 29. a3 {[%emt 0:00:00]} bxa3 {[%emt 0:00:00]} 30. bxa3 {[%emt 0:00:00]} f6 {[%emt 0:00:00]} 31. f4 {[%emt 0:00:00]} fxe5 {[%emt 0:00:00]} 32. fxe5 {[%emt 0:00:00]} Kf7 {[%emt 0:02:30]} 33. Kf2 {[%emt 0:02:30]} h5 {[%emt 0:00:30]} 34. h4 {[%emt 0:00:30]} Ke7 {[%emt 0:00:00]} 35. g3 {[%emt 0:00:00]} a5 {[%emt 0:00:00]} 36. Ke3 {[%emt 0:00:00]} Kf7 {[%emt 0:00:00]} 37. Kf4 {[%emt 0:00:00]} a4 {[%emt 0:00:00]} 38. Kg5 {[%emt 0:00:00]} Be4 {[%emt 0:00:00]} 39. e6+ {[%emt 0:00:00]} Ke7 {[%emt 0:00:00]} 40. Kf4 {[%emt 0:00:00]} Bd5 {[%emt 0:00:00]} 41. Ke5 {[%emt 0:00:00]} Bb7 {[%emt 0:04:00]} 42. Ne2 {[%emt 0:04:00]} Bc6 {[%emt 0:00:00]} 43. Nf4 {[%emt 0:00:00]} Be8 {[%emt 0:00:00]} 44. Nd5+ {[%emt 0:00:00]} Kf8 {[%emt 0:01:30]} 45. Kf6 {[%emt 0:01:30]} Bc6 {[%emt 0:00:00]} 46. Nf4 {[%emt 0:00:00]} 1-0